[Event "*** SCC Grand Prix: Titled Tuesday Blitz"]
[Site "Chess.com"]
[Date "2020.09.29"]
[Round "6"]
[White "Supernotar"]
[Black "Th3_Hound"]
[Result "1-0"]
[WhiteElo "2792"]
[BlackElo "2523"]
[TimeControl "180+1"]
[EndTime "11:05:49 PDT"]
[Termination "Supernotar won by resignation"]

1. d4 {[%clk 0:03:00.9]} 1... Nf6 {[%clk 0:02:59.7]} 2. c4 {[%clk 0:03:00.9]}
2... c5 {[%clk 0:03:00.1]} 3. d5 {[%clk 0:03:00.7]} 3... b5 {[%clk 0:03:00.5]}
4. Nf3 {[%clk 0:03:00.9]} 4... g6 {[%clk 0:02:59.1]} 5. b3 {[%clk 0:03:00.1]}
5... d6 {[%clk 0:02:57.5]} 6. Bb2 {[%clk 0:03:00.2]} 6... bxc4 {[%clk
0:02:55.5]} 7. bxc4 {[%clk 0:02:59.9]} 7... Bg7 {[%clk 0:02:56.2]} 8. Nbd2
{[%clk 0:03:00.2]} 8... O-O {[%clk 0:02:56.6]} 9. e4 {[%clk 0:02:59.2]} 9... e6
{[%clk 0:02:53]} 10. Be2 {[%clk 0:02:58.5]} 10... exd5 {[%clk 0:02:52.2]} 11.
exd5 {[%clk 0:02:50.4]} 11... Nbd7 {[%clk 0:02:50.3]} 12. O-O {[%clk 0:02:49.6]}
12... Re8 {[%clk 0:02:49.2]} 13. h3 {[%clk 0:02:44.9]} 13... Rb8 {[%clk
0:02:47.6]} 14. Bc3 {[%clk 0:02:42.5]} 14... Nxd5 {[%clk 0:02:36.4]} 15. Bxg7
{[%clk 0:02:39]} 15... Nf4 {[%clk 0:02:36]} 16. Bh6 {[%clk 0:02:29.6]} 16...
Nxe2+ {[%clk 0:02:35.8]} 17. Kh1 {[%clk 0:02:29.9]} 17... Bb7 {[%clk 0:02:14.2]}
18. Re1 {[%clk 0:02:25.5]} 18... Nd4 {[%clk 0:02:11.6]} 19. Rxe8+ {[%clk
0:02:19.8]} 19... Qxe8 {[%clk 0:02:12.5]} 20. Nxd4 {[%clk 0:02:19.8]} 20... cxd4
{[%clk 0:02:12.3]} 21. Nf3 {[%clk 0:02:19.4]} 21... Qe4 {[%clk 0:02:07.5]} 22.
Qxd4 {[%clk 0:02:06.6]} 22... Qxd4 {[%clk 0:02:03.8]} 23. Nxd4 {[%clk
0:02:07.5]} 23... Ba6 {[%clk 0:02:02.9]} 24. Nc6 {[%clk 0:02:02.7]} 24... Re8
{[%clk 0:01:58.5]} 25. Rd1 {[%clk 0:01:39.9]} 25... Bxc4 {[%clk 0:01:44.4]} 26.
Rxd6 {[%clk 0:01:39.8]} 26... Nb8 {[%clk 0:01:01]} 27. Ne7+ {[%clk 0:01:16.1]}
27... Kh8 {[%clk 0:01:00.6]} 28. a4 {[%clk 0:01:06]} 28... f6 {[%clk 0:00:36.7]}
29. Nd5 {[%clk 0:00:53.5]} 29... Bxd5 {[%clk 0:00:35.5]} 30. Rxd5 {[%clk
0:00:53.3]} 30... Kg8 {[%clk 0:00:34.8]} 31. Rb5 {[%clk 0:00:46.6]} 31... Nc6
{[%clk 0:00:31.8]} 32. Rc5 {[%clk 0:00:42.1]} 32... Re6 {[%clk 0:00:29.9]} 33.
Rd5 {[%clk 0:00:39.2]} 33... Kf7 {[%clk 0:00:25.9]} 34. Be3 {[%clk 0:00:38]}
34... g5 {[%clk 0:00:21.9]} 35. Rd7+ {[%clk 0:00:36.6]} 35... Re7 {[%clk
0:00:22]} 36. Rd6 {[%clk 0:00:36.4]} 36... Ne5 {[%clk 0:00:21.2]} 37. Ra6 {[%clk
0:00:34.1]} 37... Nc4 {[%clk 0:00:21.5]} 38. Bxa7 {[%clk 0:00:32.6]} 38... Re1+
{[%clk 0:00:20.8]} 39. Kh2 {[%clk 0:00:32.1]} 39... Nd2 {[%clk 0:00:21.3]} 40.
g4 {[%clk 0:00:27.8]} 40... Nf3+ {[%clk 0:00:17.4]} 41. Kg3 {[%clk 0:00:25.6]}
41... Nh4 {[%clk 0:00:17.9]} 42. f4 {[%clk 0:00:20.5]} 42... Ra1 {[%clk
0:00:13.3]} 43. Rxf6+ {[%clk 0:00:19.5]} 43... Ke7 {[%clk 0:00:09.9]} 44. fxg5
{[%clk 0:00:15.5]} 44... Ra3+ {[%clk 0:00:09.5]} 45. Kxh4 {[%clk 0:00:15.3]}
45... Rxa4 {[%clk 0:00:09.6]} 46. Bc5+ {[%clk 0:00:15]} 1-0

[Event "*** SCC Grand Prix: Titled Tuesday Blitz"]
[Site "Chess.com"]
[Date "2020.09.29"]
[Round "6"]
[White "midedu"]
[Black "Martins-BR"]
[Result "0-1"]
[WhiteElo "2119"]
[BlackElo "2299"]
[TimeControl "180+1"]
[EndTime "11:05:49 PDT"]
[Termination "Martins-BR won on time"]

1. e4 {[%clk 0:02:59.6]} 1... c5 {[%clk 0:02:59]} 2. Nc3 {[%clk 0:02:59]} 2...
a6 {[%clk 0:02:58.4]} 3. g3 {[%clk 0:02:59.6]} 3... b5 {[%clk 0:02:58.3]} 4. Bg2
{[%clk 0:03:00.1]} 4... Bb7 {[%clk 0:02:58.8]} 5. Nge2 {[%clk 0:03:00.1]} 5...
e5 {[%clk 0:02:55.1]} 6. O-O {[%clk 0:02:59.6]} 6... Nf6 {[%clk 0:02:50.4]} 7.
d3 {[%clk 0:02:51.1]} 7... h6 {[%clk 0:02:49.7]} 8. h3 {[%clk 0:02:49.5]} 8...
Be7 {[%clk 0:02:37.3]} 9. f4 {[%clk 0:02:48.3]} 9... d6 {[%clk 0:02:35.2]} 10.
g4 {[%clk 0:02:41.9]} 10... Nbd7 {[%clk 0:02:21.5]} 11. Be3 {[%clk 0:02:31.6]}
11... Qc7 {[%clk 0:02:19.5]} 12. Qd2 {[%clk 0:02:21.7]} 12... O-O-O {[%clk
0:02:18]} 13. Nd1 {[%clk 0:01:54.3]} 13... d5 {[%clk 0:02:11.5]} 14. fxe5 {[%clk
0:01:32.7]} 14... Nxe5 {[%clk 0:02:09.8]} 15. exd5 {[%clk 0:01:22.5]} 15... Nxd5
{[%clk 0:02:07.8]} 16. Bf2 {[%clk 0:01:10.7]} 16... Bg5 {[%clk 0:02:02.2]} 17.
Qe1 {[%clk 0:00:53]} 17... h5 {[%clk 0:01:56.7]} 18. h4 {[%clk 0:00:44.6]} 18...
Be7 {[%clk 0:01:26]} 19. g5 {[%clk 0:00:43.5]} 19... Ng4 {[%clk 0:01:25.2]} 20.
Bg3 {[%clk 0:00:43.3]} 20... Bd6 {[%clk 0:01:25.4]} 21. Bxd6 {[%clk 0:00:35.6]}
21... Rxd6 {[%clk 0:01:24.9]} 22. Qg3 {[%clk 0:00:35]} 22... Re8 {[%clk
0:01:21.3]} 23. Nec3 {[%clk 0:00:30]} 23... Nde3 {[%clk 0:01:01.1]} 24. Nxe3
{[%clk 0:00:26.6]} 24... Nxe3 {[%clk 0:01:00]} 25. Bxb7+ {[%clk 0:00:25.6]}
25... Qxb7 {[%clk 0:00:56.6]} 26. Rf2 {[%clk 0:00:24.6]} 26... Rde6 {[%clk
0:00:50.6]} 27. Ne4 {[%clk 0:00:19.1]} 27... Ng4 {[%clk 0:00:50.3]} 28. Nxc5
{[%clk 0:00:15.4]} 28... Re1+ {[%clk 0:00:47.4]} 29. Rf1 {[%clk 0:00:11.4]}
29... Rxf1+ {[%clk 0:00:42.3]} 30. Rxf1 {[%clk 0:00:10.5]} 30... Qd5 {[%clk
0:00:41.2]} 31. Ne4 {[%clk 0:00:10.3]} 31... Re6 {[%clk 0:00:30]} 32. Rxf7
{[%clk 0:00:07.2]} 32... Ne5 {[%clk 0:00:23.1]} 33. Rxg7 {[%clk 0:00:06.2]}
33... Qd4+ {[%clk 0:00:19.4]} 34. Kg2 {[%clk 0:00:05.7]} 34... Nd7 {[%clk
0:00:19.2]} 35. c3 {[%clk 0:00:03.9]} 35... Qxg7 {[%clk 0:00:18]} 36. Qf4 {[%clk
0:00:02.8]} 36... Qf8 {[%clk 0:00:15.8]} 37. Qe3 {[%clk 0:00:02.4]} 37... Qf5
{[%clk 0:00:13]} 38. Qg3 {[%clk 0:00:01.3]} 38... Qe5 {[%clk 0:00:12.1]} 39. Qf3
{[%clk 0:00:01.2]} 39... Kc7 {[%clk 0:00:09.3]} 0-1

[Event "*** SCC Grand Prix: Titled Tuesday Blitz"]
[Site "Chess.com"]
[Date "2020.09.29"]
[Round "6"]
[White "x-0414717230"]
[Black "Salem-AR"]
[Result "0-1"]
[WhiteElo "2700"]
[BlackElo "2922"]
[TimeControl "180+1"]
[EndTime "11:05:52 PDT"]
[Termination "Salem-AR won by checkmate"]

1. d4 {[%clk 0:03:00.9]} 1... Nf6 {[%clk 0:02:57.8]} 2. Nf3 {[%clk 0:03:01.2]}
2... g6 {[%clk 0:02:58]} 3. Bf4 {[%clk 0:03:01.4]} 3... Bg7 {[%clk 0:02:58.2]}
4. e3 {[%clk 0:03:01.7]} 4... O-O {[%clk 0:02:57.5]} 5. Be2 {[%clk 0:03:02.1]}
5... c5 {[%clk 0:02:57.4]} 6. O-O {[%clk 0:03:00.8]} 6... Qb6 {[%clk 0:02:57.5]}
7. Nc3 {[%clk 0:02:47.4]} 7... cxd4 {[%clk 0:02:51.5]} 8. exd4 {[%clk
0:02:36.2]} 8... d5 {[%clk 0:02:42]} 9. Nb5 {[%clk 0:02:23.6]} 9... Ne8 {[%clk
0:02:19.6]} 10. a4 {[%clk 0:02:11.4]} 10... Nc6 {[%clk 0:02:16.9]} 11. Qd2
{[%clk 0:02:06.7]} 11... a6 {[%clk 0:02:13.4]} 12. a5 {[%clk 0:02:02.1]} 12...
Qd8 {[%clk 0:02:12.6]} 13. Nc3 {[%clk 0:02:02.3]} 13... Nd6 {[%clk 0:02:07.2]}
14. Na4 {[%clk 0:01:33.5]} 14... Bg4 {[%clk 0:01:58]} 15. Nb6 {[%clk 0:01:28.2]}
15... Ne4 {[%clk 0:01:51.9]} 16. Qd1 {[%clk 0:01:16.4]} 16... Ra7 {[%clk
0:01:28.9]} 17. c3 {[%clk 0:00:50]} 17... Nxa5 {[%clk 0:01:27.1]} 18. Rxa5
{[%clk 0:00:50.2]} 18... Qxb6 {[%clk 0:01:27.3]} 19. Ra2 {[%clk 0:00:50.9]}
19... Raa8 {[%clk 0:01:18.6]} 20. h3 {[%clk 0:00:50.6]} 20... Bf5 {[%clk
0:01:14]} 21. Re1 {[%clk 0:00:50.2]} 21... Rfe8 {[%clk 0:01:06.9]} 22. Bd3
{[%clk 0:00:49.7]} 22... e5 {[%clk 0:01:00.1]} 23. Bxe4 {[%clk 0:00:30.1]} 23...
dxe4 {[%clk 0:00:53.7]} 24. Nxe5 {[%clk 0:00:30.4]} 24... Rad8 {[%clk
0:00:48.7]} 25. Qe2 {[%clk 0:00:27.5]} 25... Be6 {[%clk 0:00:43.9]} 26. Raa1
{[%clk 0:00:26.2]} 26... f6 {[%clk 0:00:39]} 27. Ng4 {[%clk 0:00:26.2]} 27... g5
{[%clk 0:00:33.2]} 28. Be3 {[%clk 0:00:20.9]} 28... Qc7 {[%clk 0:00:23.1]} 29.
Nh2 {[%clk 0:00:20.1]} 29... h6 {[%clk 0:00:22.7]} 30. Nf1 {[%clk 0:00:20.5]}
30... f5 {[%clk 0:00:23.1]} 31. Bd2 {[%clk 0:00:20.4]} 31... Bc4 {[%clk
0:00:22.5]} 32. Qh5 {[%clk 0:00:19.6]} 32... f4 {[%clk 0:00:22.6]} 33. Nh2
{[%clk 0:00:19]} 33... Bf7 {[%clk 0:00:21.7]} 34. Qg4 {[%clk 0:00:19.1]} 34...
Qc6 {[%clk 0:00:21.7]} 35. Ra5 {[%clk 0:00:18.3]} 35... Qg6 {[%clk 0:00:19.3]}
36. h4 {[%clk 0:00:18.3]} 36... Be6 {[%clk 0:00:17.7]} 37. Qd1 {[%clk
0:00:15.6]} 37... Bf5 {[%clk 0:00:17.1]} 38. hxg5 {[%clk 0:00:15.5]} 38... hxg5
{[%clk 0:00:18]} 39. Bc1 {[%clk 0:00:15.5]} 39... Bf6 {[%clk 0:00:12.6]} 40.
Qb3+ {[%clk 0:00:15.7]} 40... Kg7 {[%clk 0:00:09.9]} 41. Qxb7+ {[%clk
0:00:15.8]} 41... Re7 {[%clk 0:00:10.6]} 42. Qxa6 {[%clk 0:00:14.6]} 42... Rh8
{[%clk 0:00:11.3]} 43. Bd2 {[%clk 0:00:10]} 43... Bc8 {[%clk 0:00:11.1]} 44. Qb5
{[%clk 0:00:09]} 44... Qh5 {[%clk 0:00:10.8]} 45. Nf3 {[%clk 0:00:07.3]} 45...
Qh1# {[%clk 0:00:09.8]} 0-1

[Event "*** SCC Grand Prix: Titled Tuesday Blitz"]
[Site "Chess.com"]
[Date "2020.09.29"]
[Round "6"]
[White "StellarChessPro"]
[Black "Godzillator"]
[Result "1-0"]
[WhiteElo "2488"]
[BlackElo "2329"]
[TimeControl "180+1"]
[EndTime "11:05:52 PDT"]
[Termination "StellarChessPro won by checkmate"]

1. d4 {[%clk 0:03:00.1]} 1... d5 {[%clk 0:02:59.9]} 2. e4 {[%clk 0:02:59.6]}
2... dxe4 {[%clk 0:02:58.7]} 3. f3 {[%clk 0:02:58.6]} 3... e3 {[%clk 0:02:58.1]}
4. Bc4 {[%clk 0:02:57.5]} 4... Nf6 {[%clk 0:02:57.6]} 5. Nc3 {[%clk 0:02:57.5]}
5... c6 {[%clk 0:02:56.9]} 6. Nge2 {[%clk 0:02:57.5]} 6... Bf5 {[%clk
0:02:56.1]} 7. h4 {[%clk 0:02:55.7]} 7... h6 {[%clk 0:02:55.5]} 8. g4 {[%clk
0:02:55.9]} 8... Bh7 {[%clk 0:02:55.4]} 9. Bxe3 {[%clk 0:02:56.8]} 9... e6
{[%clk 0:02:55.1]} 10. Qd2 {[%clk 0:02:56.7]} 10... Nd5 {[%clk 0:02:52.2]} 11.
Nxd5 {[%clk 0:02:56.6]} 11... cxd5 {[%clk 0:02:51.7]} 12. Bb5+ {[%clk
0:02:56.4]} 12... Nc6 {[%clk 0:02:52]} 13. O-O-O {[%clk 0:02:56.3]} 13... Qb6
{[%clk 0:02:50.6]} 14. Bxc6+ {[%clk 0:02:55.6]} 14... bxc6 {[%clk 0:02:50.3]}
15. Nc3 {[%clk 0:02:30.3]} 15... Rb8 {[%clk 0:02:50.1]} 16. Na4 {[%clk
0:02:30.3]} 16... Qb5 {[%clk 0:02:47.5]} 17. b3 {[%clk 0:02:30]} 17... Ba3+
{[%clk 0:02:46.7]} 18. Nb2 {[%clk 0:02:26.6]} 18... Qa6 {[%clk 0:02:42.9]} 19.
Kb1 {[%clk 0:02:21.6]} 19... Bb4 {[%clk 0:02:41.7]} 20. Qc1 {[%clk 0:02:15.9]}
20... Bc3 {[%clk 0:02:41.5]} 21. Bd2 {[%clk 0:02:12.3]} 21... Bxd4 {[%clk
0:02:40.7]} 22. Bf4 {[%clk 0:02:11.5]} 22... Rb4 {[%clk 0:02:20.3]} 23. Nd3
{[%clk 0:01:45]} 23... Rb6 {[%clk 0:02:00.2]} 24. g5 {[%clk 0:01:21.4]} 24...
Bc3 {[%clk 0:01:50.8]} 25. Bd6 {[%clk 0:01:11]} 25... Qb5 {[%clk 0:01:41.6]} 26.
Qa3 {[%clk 0:00:58.3]} 26... a5 {[%clk 0:01:35.2]} 27. Qc5 {[%clk 0:00:57.2]}
27... Qxc5 {[%clk 0:01:32.9]} 28. Bxc5 {[%clk 0:00:56.6]} 28... Rb5 {[%clk
0:01:28.9]} 29. a4 {[%clk 0:00:41]} 29... Rb7 {[%clk 0:01:26]} 30. Rhg1 {[%clk
0:00:39.3]} 30... Bf5 {[%clk 0:01:22.5]} 31. Rg3 {[%clk 0:00:33.3]} 31... hxg5
{[%clk 0:01:22]} 32. hxg5 {[%clk 0:00:34.2]} 32... g6 {[%clk 0:01:20.9]} 33. f4
{[%clk 0:00:32.6]} 33... Rh2 {[%clk 0:01:08.7]} 34. Bg1 {[%clk 0:00:32.4]} 34...
Rh1 {[%clk 0:01:00.6]} 35. Nc5 {[%clk 0:00:30.8]} 35... Rb8 {[%clk 0:00:56.9]}
36. Rxc3 {[%clk 0:00:29.8]} 36... Ke7 {[%clk 0:00:48]} 37. Kc1 {[%clk
0:00:29.6]} 37... Rbh8 {[%clk 0:00:47.3]} 38. Bd4 {[%clk 0:00:29.7]} 38... Rxd1+
{[%clk 0:00:45.5]} 39. Kxd1 {[%clk 0:00:30.6]} 39... Rh1+ {[%clk 0:00:45.2]} 40.
Kd2 {[%clk 0:00:31.2]} 40... Rh2+ {[%clk 0:00:45.5]} 41. Kc1 {[%clk 0:00:31.4]}
41... Rh1+ {[%clk 0:00:40.2]} 42. Kb2 {[%clk 0:00:31.6]} 42... Rf1 {[%clk
0:00:40.6]} 43. Be5 {[%clk 0:00:31.9]} 43... Rd1 {[%clk 0:00:36.6]} 44. Nb7
{[%clk 0:00:31.8]} 44... d4 {[%clk 0:00:33.6]} 45. Rxc6 {[%clk 0:00:31.2]} 45...
d3 {[%clk 0:00:33.2]} 46. Rc7+ {[%clk 0:00:31.7]} 46... Ke8 {[%clk 0:00:32.3]}
47. cxd3 {[%clk 0:00:28.3]} 47... Bxd3 {[%clk 0:00:30]} 48. Bf6 {[%clk
0:00:25.6]} 48... Rb1+ {[%clk 0:00:15.3]} 49. Ka2 {[%clk 0:00:25.8]} 49... Be4
{[%clk 0:00:15.4]} 50. Nd6+ {[%clk 0:00:25.4]} 50... Kf8 {[%clk 0:00:13.9]} 51.
Rc8# {[%clk 0:00:24.8]} 1-0

[Event "*** SCC Grand Prix: Titled Tuesday Blitz"]
[Site "Chess.com"]
[Date "2020.09.29"]
[Round "6"]
[White "RasSanti"]
[Black "mortngabriel"]
[Result "0-1"]
[WhiteElo "2321"]
[BlackElo "2456"]
[TimeControl "180+1"]
[EndTime "11:05:55 PDT"]
[Termination "mortngabriel won on time"]

1. d4 {[%clk 0:03:00.9]} 1... Nf6 {[%clk 0:02:59.4]} 2. Bg5 {[%clk 0:03:00]}
2... d5 {[%clk 0:02:58.3]} 3. Bxf6 {[%clk 0:02:57.8]} 3... gxf6 {[%clk
0:02:59.2]} 4. c4 {[%clk 0:02:57.4]} 4... dxc4 {[%clk 0:02:52.4]} 5. e3 {[%clk
0:02:48.5]} 5... e6 {[%clk 0:02:49.9]} 6. Bxc4 {[%clk 0:02:47.6]} 6... a6 {[%clk
0:02:46.4]} 7. a4 {[%clk 0:02:46.8]} 7... c5 {[%clk 0:02:46]} 8. Ne2 {[%clk
0:02:41.9]} 8... b6 {[%clk 0:02:37.7]} 9. d5 {[%clk 0:02:29.5]} 9... f5 {[%clk
0:02:05]} 10. dxe6 {[%clk 0:01:49.2]} 10... Qxd1+ {[%clk 0:01:42]} 11. Kxd1
{[%clk 0:01:50.1]} 11... fxe6 {[%clk 0:01:37.4]} 12. Nbc3 {[%clk 0:01:29.1]}
12... Nc6 {[%clk 0:01:30.3]} 13. Nf4 {[%clk 0:01:23.9]} 13... Kf7 {[%clk
0:01:27.5]} 14. Ke2 {[%clk 0:01:19.5]} 14... Ne5 {[%clk 0:01:23.7]} 15. Bb3
{[%clk 0:01:15.7]} 15... c4 {[%clk 0:01:21.5]} 16. Bc2 {[%clk 0:01:14.8]} 16...
Bb7 {[%clk 0:01:21.9]} 17. Rad1 {[%clk 0:00:56.7]} 17... Bc5 {[%clk 0:01:11.8]}
18. f3 {[%clk 0:00:45.7]} 18... Rad8 {[%clk 0:01:06.5]} 19. Rxd8 {[%clk
0:00:42.6]} 19... Rxd8 {[%clk 0:00:59.2]} 20. Rd1 {[%clk 0:00:43.5]} 20... Rxd1
{[%clk 0:00:59.4]} 21. Bxd1 {[%clk 0:00:44]} 21... Bc6 {[%clk 0:00:58]} 22. Bc2
{[%clk 0:00:41.4]} 22... b5 {[%clk 0:00:57.5]} 23. axb5 {[%clk 0:00:39.5]} 23...
axb5 {[%clk 0:00:58.4]} 24. Kd2 {[%clk 0:00:27.8]} 24... Ke7 {[%clk 0:00:48.9]}
25. Nfe2 {[%clk 0:00:24.1]} 25... Kd6 {[%clk 0:00:35.7]} 26. Nd4 {[%clk
0:00:22.1]} 26... b4 {[%clk 0:00:11.5]} 27. Nce2 {[%clk 0:00:16.6]} 27... Bd7
{[%clk 0:00:09.2]} 28. h3 {[%clk 0:00:12.8]} 28... h5 {[%clk 0:00:08.5]} 29. f4
{[%clk 0:00:09.4]} 29... Nc6 {[%clk 0:00:07.6]} 30. Nxc6 {[%clk 0:00:08.6]}
30... Bxc6 {[%clk 0:00:07.8]} 31. g3 {[%clk 0:00:08.1]} 31... Bg2 {[%clk
0:00:06.1]} 32. h4 {[%clk 0:00:07.8]} 32... Bf3 {[%clk 0:00:06.3]} 33. Nd4
{[%clk 0:00:07]} 33... Bxd4 {[%clk 0:00:06.4]} 34. exd4 {[%clk 0:00:07.9]} 34...
Kd5 {[%clk 0:00:07.3]} 35. Ke3 {[%clk 0:00:08]} 35... Be4 {[%clk 0:00:07.6]} 36.
Bd1 {[%clk 0:00:07.3]} 36... b3 {[%clk 0:00:05.9]} 37. Bxh5 {[%clk 0:00:03.7]}
37... c3 {[%clk 0:00:06.3]} 38. bxc3 {[%clk 0:00:02.3]} 38... b2 {[%clk
0:00:06.7]} 0-1

[Event "*** SCC Grand Prix: Titled Tuesday Blitz"]
[Site "Chess.com"]
[Date "2020.09.29"]
[Round "6"]
[White "ExtremeLearner"]
[Black "PSvidler"]
[Result "0-1"]
[WhiteElo "2310"]
[BlackElo "2912"]
[TimeControl "180+1"]
[EndTime "11:06:02 PDT"]
[Termination "PSvidler won by resignation"]

1. d4 {[%clk 0:03:00.3]} 1... d6 {[%clk 0:02:59.4]} 2. Nf3 {[%clk 0:02:59.3]}
2... Bg4 {[%clk 0:02:40.7]} 3. g3 {[%clk 0:02:57.8]} 3... Bxf3 {[%clk
0:02:38.4]} 4. exf3 {[%clk 0:02:58]} 4... c6 {[%clk 0:02:38.5]} 5. Bg2 {[%clk
0:02:57.4]} 5... g6 {[%clk 0:02:38.6]} 6. O-O {[%clk 0:02:56.9]} 6... Bg7 {[%clk
0:02:38.4]} 7. Re1 {[%clk 0:02:56.9]} 7... d5 {[%clk 0:02:36]} 8. c3 {[%clk
0:02:54.9]} 8... e6 {[%clk 0:02:36]} 9. h4 {[%clk 0:02:54]} 9... Nd7 {[%clk
0:02:35.2]} 10. Nd2 {[%clk 0:02:52.1]} 10... Ne7 {[%clk 0:02:34.8]} 11. f4
{[%clk 0:02:52.2]} 11... O-O {[%clk 0:02:30.6]} 12. Nf3 {[%clk 0:02:51]} 12...
c5 {[%clk 0:02:30.1]} 13. Be3 {[%clk 0:02:46.9]} 13... Nf5 {[%clk 0:02:28.5]}
14. Ne5 {[%clk 0:02:44.2]} 14... cxd4 {[%clk 0:02:12.1]} 15. cxd4 {[%clk
0:02:45.1]} 15... Nxe3 {[%clk 0:02:08.1]} 16. Rxe3 {[%clk 0:02:46]} 16... Rc8
{[%clk 0:01:46.4]} 17. h5 {[%clk 0:02:44]} 17... Nxe5 {[%clk 0:01:36.1]} 18.
fxe5 {[%clk 0:02:39.3]} 18... Rc4 {[%clk 0:01:34.1]} 19. b3 {[%clk 0:02:31.4]}
19... Rc6 {[%clk 0:01:33.8]} 20. f4 {[%clk 0:02:29.1]} 20... Qb6 {[%clk
0:01:32.3]} 21. Rd3 {[%clk 0:02:25.7]} 21... Rfc8 {[%clk 0:01:31.5]} 22. Qg4
{[%clk 0:02:18.4]} 22... Rc3 {[%clk 0:01:23]} 23. Rad1 {[%clk 0:02:15.6]} 23...
Rxd3 {[%clk 0:01:23.1]} 24. Rxd3 {[%clk 0:02:16.5]} 24... Rc1+ {[%clk
0:01:23.6]} 25. Kh2 {[%clk 0:02:13.8]} 25... Qa5 {[%clk 0:01:16.2]} 26. Qe2
{[%clk 0:01:47.6]} 26... Bf8 {[%clk 0:01:02.2]} 27. Rd2 {[%clk 0:01:41.5]} 27...
Qc7 {[%clk 0:01:01.4]} 28. Qb5 {[%clk 0:01:26.5]} 28... Qc3 {[%clk 0:00:59]} 29.
Qe2 {[%clk 0:01:02.2]} 29... Bb4 {[%clk 0:00:50.9]} 30. Rd3 {[%clk 0:01:00]}
30... Qc2 {[%clk 0:00:50.2]} 31. Qf3 {[%clk 0:00:54.7]} 31... Qxa2 {[%clk
0:00:39.5]} 32. h6 {[%clk 0:00:49]} 32... Bf8 {[%clk 0:00:38.1]} 33. Rc3 {[%clk
0:00:40.2]} 33... Rxc3 {[%clk 0:00:37.2]} 34. Qxc3 {[%clk 0:00:41.1]} 34... Bxh6
{[%clk 0:00:37.8]} 35. Qc8+ {[%clk 0:00:41.3]} 35... Bf8 {[%clk 0:00:37.6]} 36.
Qxb7 {[%clk 0:00:41.9]} 36... a5 {[%clk 0:00:37.7]} 37. g4 {[%clk 0:00:30.9]}
37... Qd2 {[%clk 0:00:37.1]} 38. Kg3 {[%clk 0:00:28.6]} 38... Qxd4 {[%clk
0:00:37]} 39. Qd7 {[%clk 0:00:21.3]} 39... Bc5 {[%clk 0:00:36]} 40. Qd8+ {[%clk
0:00:18.1]} 40... Bf8 {[%clk 0:00:35.6]} 41. Qf6 {[%clk 0:00:15.7]} 41... h6
{[%clk 0:00:25.9]} 42. Bf3 {[%clk 0:00:13.1]} 42... g5 {[%clk 0:00:20.5]} 43.
fxg5 {[%clk 0:00:11.5]} 43... Bg7 {[%clk 0:00:20.8]} 44. Qd8+ {[%clk 0:00:11.3]}
44... Kh7 {[%clk 0:00:21]} 45. gxh6 {[%clk 0:00:08.6]} 45... Bxe5+ {[%clk
0:00:21]} 46. Kh3 {[%clk 0:00:07.2]} 46... Qf4 {[%clk 0:00:21]} 0-1

[Event "*** SCC Grand Prix: Titled Tuesday Blitz"]
[Site "Chess.com"]
[Date "2020.09.29"]
[Round "6"]
[White "Smirnov_Pavel"]
[Black "Onischuk_V"]
[Result "0-1"]
[WhiteElo "2702"]
[BlackElo "2898"]
[TimeControl "180+1"]
[EndTime "11:06:03 PDT"]
[Termination "Onischuk_V won by resignation"]

1. e4 {[%clk 0:02:33.6]} 1... d6 {[%clk 0:02:59.7]} 2. d4 {[%clk 0:02:34.2]}
2... Nf6 {[%clk 0:02:59.8]} 3. Nc3 {[%clk 0:02:34.9]} 3... g6 {[%clk 0:03:00.4]}
4. f4 {[%clk 0:02:35.5]} 4... Bg7 {[%clk 0:03:00.9]} 5. Nf3 {[%clk 0:02:36.1]}
5... O-O {[%clk 0:03:01.5]} 6. e5 {[%clk 0:02:36.6]} 6... dxe5 {[%clk 0:03:01]}
7. fxe5 {[%clk 0:02:37.5]} 7... Nd5 {[%clk 0:03:01.1]} 8. Bc4 {[%clk 0:02:38]}
8... Nxc3 {[%clk 0:02:59.4]} 9. bxc3 {[%clk 0:02:38.9]} 9... c5 {[%clk
0:02:59.8]} 10. O-O {[%clk 0:02:39.2]} 10... Bg4 {[%clk 0:02:59.7]} 11. Qd3
{[%clk 0:02:39.1]} 11... Nc6 {[%clk 0:02:57.2]} 12. Ng5 {[%clk 0:02:38.6]} 12...
e6 {[%clk 0:02:57.5]} 13. Qg3 {[%clk 0:02:38.1]} 13... Bf5 {[%clk 0:02:54.8]}
14. Rxf5 {[%clk 0:02:36.7]} 14... exf5 {[%clk 0:02:55]} 15. e6 {[%clk
0:02:37.1]} 15... Bxd4+ {[%clk 0:02:52.7]} 16. Kf1 {[%clk 0:02:33.3]} 16... Be5
{[%clk 0:02:49.9]} 17. Bf4 {[%clk 0:02:33]} 17... Qd6 {[%clk 0:02:32.7]} 18.
Nxf7 {[%clk 0:01:09.4]} 18... Rxf7 {[%clk 0:02:15.6]} 19. exf7+ {[%clk
0:01:10.3]} 19... Kg7 {[%clk 0:02:15.8]} 20. Bxe5+ {[%clk 0:00:47.9]} 20... Nxe5
{[%clk 0:01:56]} 21. Re1 {[%clk 0:00:39.3]} 21... Nxf7 {[%clk 0:00:34.3]} 22.
Qxd6 {[%clk 0:00:38.4]} 22... Nxd6 {[%clk 0:00:34.2]} 23. Re7+ {[%clk
0:00:38.8]} 23... Kh6 {[%clk 0:00:34.8]} 24. Bd5 {[%clk 0:00:37.8]} 24... Rd8
{[%clk 0:00:33.7]} 25. c4 {[%clk 0:00:32]} 25... b5 {[%clk 0:00:27.2]} 26. Rxa7
{[%clk 0:00:21]} 26... Nxc4 {[%clk 0:00:27.3]} 27. Bxc4 {[%clk 0:00:20.1]} 27...
bxc4 {[%clk 0:00:27.6]} 28. Ke1 {[%clk 0:00:19.9]} 28... c3 {[%clk 0:00:27.1]}
29. Ra3 {[%clk 0:00:17.7]} 29... Rd2 {[%clk 0:00:27]} 30. Rxc3 {[%clk 0:00:18]}
30... Rxg2 {[%clk 0:00:27.3]} 31. h3 {[%clk 0:00:18.1]} 31... Rg1+ {[%clk
0:00:22.1]} 32. Kf2 {[%clk 0:00:15.4]} 32... Ra1 {[%clk 0:00:22.3]} 33. Ra3
{[%clk 0:00:14.8]} 33... Kg5 {[%clk 0:00:21.6]} 34. Kg3 {[%clk 0:00:13.9]} 34...
f4+ {[%clk 0:00:17.5]} 35. Kf2 {[%clk 0:00:13.4]} 35... h5 {[%clk 0:00:17.2]}
36. Ra5 {[%clk 0:00:12.8]} 36... Kh4 {[%clk 0:00:16.1]} 37. Kg2 {[%clk
0:00:12.1]} 37... g5 {[%clk 0:00:15.8]} 38. Rxc5 {[%clk 0:00:11.4]} 38... Rxa2
{[%clk 0:00:15.4]} 39. Rc4 {[%clk 0:00:11.7]} 39... Ra3 {[%clk 0:00:15.3]} 40.
c3 {[%clk 0:00:10.7]} 40... Ra2+ {[%clk 0:00:15.5]} 41. Kf3 {[%clk 0:00:10.9]}
41... Kxh3 {[%clk 0:00:15.1]} 42. Rc5 {[%clk 0:00:11.4]} 42... Rg2 {[%clk
0:00:12.9]} 43. c4 {[%clk 0:00:10.4]} 43... Rg3+ {[%clk 0:00:13.1]} 44. Kf2
{[%clk 0:00:10.5]} 44... Kg4 {[%clk 0:00:12.2]} 45. Rc8 {[%clk 0:00:10.5]} 45...
h4 {[%clk 0:00:11.6]} 46. c5 {[%clk 0:00:10.2]} 46... h3 {[%clk 0:00:11.7]} 47.
c6 {[%clk 0:00:10.7]} 47... Rg2+ {[%clk 0:00:11.7]} 48. Kf1 {[%clk 0:00:10.2]}
48... Rc2 {[%clk 0:00:12.3]} 49. c7 {[%clk 0:00:09.5]} 0-1